Cogmind - Beta 15 @@@ ROGUE MODE // 2025.08.02 @ 03:19:57 Player: Naughtyusername Result: Destroyed by DX-NPL(j) with Overtuned Pulse Rifle Performance ------------- Evolutions (1) 500 Regions Visited (5) 1000 Robots Destroyed (69) 345 Value Destroyed (1507) 1507 Prototype IDs (8) 160 Alien Tech Used (0) 0 Bonus (1067) 1067 TOTAL SCORE: 4579 Bonus ------- Follower Combat Kills 267 Registered with UFD 300 Met Optimus in HQ 500 Cogmind --------- Core Integrity 0/400 Matter 262/300 Energy 265/265 System Corruption 0% Temperature Cool (43) Movement Treading (200) Ox3 Location -9/Scraptown Parts ------- > --- POWER (1) -------- Improved Ion Engine > --- PROPULSION (3) --- Overtuned Treads Overtuned Treads Overtuned Treads > --- UTILITY (3) ------ High-capacity Storage Unit Medium Armor Plating Medium Armor Plating > --- WEAPON (2) ------- Mini Grenade Launcher > --- INVENTORY (20) --- Overtuned Treads Wheel Wheel Armored Wheel Armored Wheel Armored Huge Wheel Sensor Array Advanced Signal Interpreter Surveybot 17 Chip Seismic Detector Makeshift Salvage Targeting Computer Improved Targeting Computer Makeshift Hacking Suite Mapping Drone Bay (2/3) Particle Gun Autogun Enhanced Autogun Hypervelocity Gauss Rifle Peak State ------------ > --- POWER ------------ Improved Ion Engine > --- PROPULSION ------- Overtuned Treads Overtuned Treads Armored Wheel > --- UTILITY ---------- High-capacity Storage Unit Core Shielding Mapping Drone Bay > --- WEAPON ----------- Heavy Assault Rifle Enhanced Autogun > --- INVENTORY -------- Wheel Wheel Armored Wheel Armored Huge Wheel Sensor Array Advanced Signal Interpreter Surveybot 17 Chip Seismic Detector Makeshift Salvage Targeting Computer Improved Targeting Computer Medium Armor Plating Medium Armor Plating Makeshift Hacking Suite Particle Gun Autogun Hypervelocity Gauss Rifle Mini Grenade Launcher [Rating: 29] Favorites ----------- Power Improved Ion Engine Engine Improved Ion Engine Propulsion Armored Wheel Treads Light Treads Leg Aluminum Leg Wheel Armored Wheel Utility Signal Interpreter Device Seismic Detector Storage High-capacity Storage Unit Processor Signal Interpreter Protection Hardened Light Armor Plating Weapon Heavy Assault Rifle Energy Gun Small Laser Energy Cannon Particle Cannon Ballistic Gun Heavy Assault Rifle Ballistic Cannon Improved Light Cannon Launcher Mini Grenade Launcher Build | -11 -10 -9 -9 -9 -9 ------- Run | Yrd Mat Mat Sto Rec Scr Slots Evolved 2 | . . 2 . . . Power . | . . . . . . Propulsion 1 | . . 1 . . . Utility 1 | . . 1 . . . Weapon . | . . . . . . Parts Attached 42 | 4 2 21 4 . 11 Power 3 | . . 1 1 . 1 Engine 3 | . . 1 1 . 1 Core . | . . . . . . Reactor . | . . . . . . Propulsion 14 | 2 . 7 . . 5 Treads 7 | 2 . 2 . . 3 Leg . | . . . . . . Wheel 7 | . . 5 . . 2 Hover . | . . . . . . Flight . | . . . . . . Utility 11 | 1 2 3 1 . 4 Device 3 | 1 . 1 . . 1 Storage 2 | . 1 1 . . . Processor 1 | . . 1 . . . Hackware . | . . . . . . Protection 5 | . 1 . 1 . 3 Artifact . | . . . . . . Weapon 14 | 1 . 10 2 . 1 Energy Gun 1 | 1 . . . . . Energy Cannon 2 | . . 2 . . . Ballistic Gun 8 | . . 5 2 . 1 Ballistic Cannon 1 | . . 1 . . . Launcher 2 | . . 2 . . . Special Weapon . | . . . . . . Impact Weapon . | . . . . . . Slashing Weapon . | . . . . . . Piercing Weapon . | . . . . . . Special Melee Weapon . | . . . . . . Unidentified Prototypes 1 | . . . . . 1 Parts Lost 13 | . . 8 . . 5 Power 2 | . . 2 . . . Propulsion 6 | . . 4 . . 2 Utility 2 | . . . . . 2 Weapon 3 | . . 2 . . 1 Highest Loss Streak 3 | . . 3 . . 3 To Critical Strikes . | . . . . . . Average Backups 15 | 4 9 14 19 20 16 Power . | 1 1 . . 1 . Propulsion 3 | 2 . 1 4 4 3 Utility 6 | . 4 6 6 7 7 Weapon 5 | 1 3 6 8 8 4 Tool/Special . | . . . . . . Unused Backups 34 | 4 2 8 5 1 14 Power . | . . . . . . Propulsion 9 | 4 . 2 1 . 2 Utility 20 | . 2 5 4 . 9 Weapon 5 | . . 1 . 1 3 Tool/Special . | . . . . . . Average Slot Usage (%) 91 | . 99 85 97 100 86 Engine 9 | . 14 5 8 11 9 Treads 7 | . 28 14 . . . Wheel 21 | . . 12 33 33 26 Device 7 | . 11 10 . . 8 Storage 10 | . 14 10 11 11 9 Processor 8 | . . 9 11 11 10 Protection 4 | . 1 1 10 11 3 Energy Gun 5 | . 28 . . . . Ballistic Gun 14 | . . 13 21 22 17 Peak Build Rating 29 | 7 8 15 19 19 29 Average Rating 14 | 6 7 11 18 19 16 On Entrance 12 | 6 7 8 15 19 19 Naked Turns . | . . . . . . Heaviest Build 62 | 12 27 50 58 58 62 Greatest Support 60 | 40 40 60 36 36 36 Greatest Overweight (x) 16 | . . 16 2 1 3 Average Overweight (x) . | . . . 1 1 . Largest Inventory Capacity 20 | 8 15 20 20 20 20 Average Capacity 17 | 8 13 18 20 20 17 Most Carried 20 | 6 15 20 20 20 20 Average Carried 15 | 4 9 14 19 20 16 Final Capacity 20 | 8 15 20 20 20 20 Final Carried 20 | 5 15 20 20 20 19 Class Distribution -------------------- 52% | Commander-Mutant 45% | Mutant Dominant Class ---------------- Mutant | -10/Materials Mutant | -9/Materials Mutant | -9/Storage Commander-Mutant | -9/Recycling Commander-Mutant | -9/Scraptown Resources | -11 -10 -9 -9 -9 -9 ----------- Run | Yrd Mat Mat Sto Rec Scr Matter Collected 1511 | 261 30 444 309 59 408 Remotely . | . . . . . . Salvage Created 2156 | 141 307 771 465 57 415 Parts 139 | 6 23 56 27 1 26 Haulers Intercepted 4 | . . 3 1 . . Recyclers Shooed 2 | 1 . 1 . . . Parts Field Recycled . | . . . . . . Retrieved Matter . | . . . . . . Parts Self-Destructed . | . . . . . . Prevented . | . . . . . . Kills | -11 -10 -9 -9 -9 -9 ------- Run | Yrd Mat Mat Sto Rec Scr Combat Hostiles Destroyed 46 | . 10 18 9 1 8 Guns 26 | . 10 6 7 1 2 Cannons 3 | . . 3 . . . AOE 17 | . . 9 2 . 6 Classes Destroyed 14 | 2 3 5 . . 4 Worker 3 | . . 3 . . . Builder 3 | . . 3 . . . Tunneler 4 | 3 . 1 . . . Hauler 4 | . . 3 1 . . Recycler 5 | 1 . 4 . . . Watcher 3 | . 2 . 1 . . Swarmer 17 | . 6 11 . . . Grunt 14 | . 4 4 5 . 1 Brawler 1 | . . 1 . . . Sentry 7 | . . 2 4 1 . Bolteater 1 | . . . . . 1 Ranger 2 | . . . . . 2 Guru 1 | . . . . . 1 Scrapper 4 | . . . . . 4 Best Kill Streak 14 | 1 5 14 4 1 5 Combat Bots Only 8 | . 5 8 4 1 5 Max Kills in Single Turn 5 | 1 1 5 2 1 2 Gunslinging . | . . . . . . Exploded 4 | . . 4 2 . 2 Melee . | . . . . . . Uniques/NPCs Destroyed . | . . . . . . Combat | -11 -10 -9 -9 -9 -9 -------- Run | Yrd Mat Mat Sto Rec Scr Hostile Shots Fired 260 | . 41 113 24 2 80 Missed 74 | . 9 32 7 . 26 Hits 186 | . 32 81 17 2 54 Melee 8 | . . 2 . . 6 Projectile 178 | . 32 79 17 2 48 Critical Strikes 9 | . . 5 . . 4 Actively Blocked 1 | . . . . . 1 Damage Taken 2551 | . 323 984 226 30 988 Core 442 | . 31 253 14 . 144 Absorbed by Shields . | . . . . . . Redirected to Shielding 35 | . 7 . . . 28 Regen/Repaired (Parts) 10 | . 10 . . . . Core Remaining (%) 93 | 100 87 . . . . Volleys Fired 183 | 12 31 78 30 3 29 Largest 2 | 2 2 2 2 2 2 Hottest 91 | 80 80 91 46 46 48 Shots Fired 314 | 24 62 118 57 7 46 Gun 248 | 24 62 66 55 7 34 Cannon 43 | . . 43 . . . Launcher 23 | . . 9 2 . 12 Special . | . . . . . . Kinetic 172 | 7 . 69 55 7 34 Thermal 83 | 12 31 40 . . . Explosive 23 | . . 9 2 . 12 Electromagnetic 36 | 5 31 . . . . Robot Hit Streak 12 | 4 9 10 12 3 11 Robot Miss Streak 5 | 5 4 3 3 1 1 Penetration Max . | . . . . . . Secondary Targets 5 | . 1 2 1 . 1 Max Gunslinging Chain 1 | . 1 1 1 . 1 Shots Hit Robots 199 | 13 40 73 38 4 31 Core Hits 105 | 5 17 42 18 2 21 Critical Kills . | . . . . . . Critical Parts Destroyed 1 | . . 1 . . . Critical Strikes 1 | . . 1 . . . Destroy 1 | . . 1 . . . Melee Attacks . | . . . . . . Impact . | . . . . . . Slashing . | . . . . . . Piercing . | . . . . . . Sneak Attacks . | . . . . . . Combat Hostiles . | . . . . . . Follow-up Attacks . | . . . . . . Damage Inflicted 5011 | 153 586 2104 819 59 1290 Guns 2295 | 153 505 566 563 59 449 Cannons 558 | . . 558 . . . Explosions 2143 | . 66 980 256 . 841 Melee . | . . . . . . Ramming 15 | . 15 . . . . Kinetic 1676 | 39 . 566 563 59 449 Thermal 946 | 102 286 558 . . . Explosive 2077 | . . 980 256 . 841 Electromagnetic 297 | 12 285 . . . . Impact . | . . . . . . Slashing . | . . . . . . Piercing . | . . . . . . Highest Corruption 2 | . . . 2 2 2 Average Corruption 2 | . . . 2 2 2 Corruption Purged . | . . . . . . Corruption Blocked . | . . . . . . Effects 17 | . . . 5 12 . Message Errors 2 | . . . . 2 . Matter Fused 4 | . . . 3 1 . Heat Flow Errors 3 | . . . . 3 . Energy Discharges 2 | . . . . 2 . Parts Rejected 1 | . . . 1 . . Data Loss (minor) 2 | . . . 1 1 . Data Loss (major) 1 | . . . . 1 . Misfires 1 | . . . . 1 . Alerts 1 | . . . . 1 . Overload Shots . | . . . . . . Overflow Damage 98 | . 4 68 5 . 21 Projectiles . | . . . . . . Explosions 98 | . 4 68 5 . 21 Melee . | . . . . . . Knockbacks . | . . . . . . Impact . | . . . . . . Kinetic . | . . . . . . Secondary . | . . . . . . Self-Inflicted Damage 96 | . 37 59 . . . Shots 3 | . 1 2 . . . Rammed 1 | . 1 . . . . Targets Rammed 2 | . 2 . . . . Kicked . | . . . . . . Crushed 1 | . 1 . . . . Highest Temperature 275 | 72 174 170 10 275 127 Average Temperature 52 | 33 52 46 4 114 46 Received Heat Transfer 1011 | . 75 297 93 9 537 Siege Activations . | . . . . . . Martial Activations . | . . . . . . Shielding Activations . | . . . . . . Robots Disrupted . | . . . . . . Combat Hostiles . | . . . . . . Robots Corrupted . | . . . . . . Combat Hostiles . | . . . . . . Parts Fried . | . . . . . . Impact Corruptions . | . . . . . . Robots Melted . | . . . . . . Combat Hostiles . | . . . . . . Parts Melted . | . . . . . . Heat Transferred 1874 | 225 650 999 . . . Parts Sabotaged . | . . . . . . Parts Stolen . | . . . . . . Parts Stripped . | . . . . . . Power Chain Reactions 1 | . 1 . . . . Alert | -11 -10 -9 -9 -9 -9 ------- Run | Yrd Mat Mat Sto Rec Scr Maximum Alert Level 1 | . . 1 1 . . Low Security (%) 79 | 100 100 34 85 100 . Level 1 20 | . . 65 14 . . Level 2 . | . . . . . . Level 3 . | . . . . . . Level 4 . | . . . . . . Level 5 . | . . . . . . High Security . | . . . . . . Max Security . | . . . . . . Peak Influence 384 | 5 131 384 223 135 . Initial 114 | . . 55 114 16 . Average 93 | 1 26 229 87 34 . Influence Increases 1635 | 20 323 650 360 282 . Destroy 0b10 Robot/C 840 | . 200 360 220 60 . Destroy 0b10 Robot/NC 110 | 20 10 70 10 . . Destroy Leader 204 | . 54 86 64 . . Allied During Kill 50 | . . . 26 24 . Successful Hack 84 | . 25 22 19 18 . Select Force Hacks 180 | . . . . 180 . Disable Machine 75 | . 30 45 . . . Destroy Structure 77 | . 4 52 21 . . Lose Combat Pursuer 15 | . . 15 . . . Influence Decreases 1635 | 20 192 509 588 247 79 Entered New Map 341 | . . 76 158 28 79 Time Decay 1058 | 20 192 363 280 203 . Lost Part 70 | . . 70 . . . Purge Threat 166 | . . . 150 16 . Squads Dispatched 8 | . 2 3 3 . . Investigation 3 | . 2 1 . . . Extermination . | . . . . . . Reinforcement 4 | . . 2 2 . . Assault . | . . . . . . Garrison 1 | . . . 1 . . Intercept . | . . . . . . Searches Triggered . | . . . . . . Construction Impeded 1 | . . 1 . . . Haulers Reinforced . | . . . . . . Active Scanning Responses . | . . . . . . Cargo Convoy Interrupts . | . . . . . . Stealth | -11 -10 -9 -9 -9 -9 --------- Run | Yrd Mat Mat Sto Rec Scr Distress Signals 6 | . 3 3 . . . Communications Jammed . | . . . . . . Distress Signals . | . . . . . . Times Spotted 84 | . 16 26 14 1 27 Peak Tracking Total 8 | . 4 6 3 1 8 Tactical Retreats 1 | . . 1 . . . Traps | -11 -10 -9 -9 -9 -9 ------- Run | Yrd Mat Mat Sto Rec Scr Traps Triggered 4 | . 1 1 2 . . Indirectly . | . . . . . . Trap Hack Attempts . | . . . . . . Triggered . | . . . . . . Disarmed . | . . . . . . Reprogrammed . | . . . . . . Reused . | . . . . . . Traps Extracted . | . . . . . . Installed . | . . . . . . Triggered . | . . . . . . Machines | -11 -10 -9 -9 -9 -9 ---------- Run | Yrd Mat Mat Sto Rec Scr Machines Disabled 5 | . 2 3 . . . Max in Single Turn 1 | . 1 1 . . . Garrison Access 1 | . . . 1 . . Machines Repaired . | . . . . . . Machines Dismantled . | . . . . . . Machines Sabotaged . | . . . . . . Overloaded Fab Kills . | . . . . . . Hacking | -11 -10 -9 -9 -9 -9 --------- Run | Yrd Mat Mat Sto Rec Scr Machines Accessed 48 | . 8 7 11 14 8 Terminals 28 | . 7 5 10 6 . Fabricators . | . . . . . . Repair Stations 2 | . 1 1 . . . Recycling Units 6 | . . . . 6 . Scanalyzers 1 | . . 1 . . . Garrison Access 1 | . . . 1 . . Total Hacks 206 | . 26 22 31 60 67 Successful 159 | . 12 14 20 46 67 Failed 47 | . 14 8 11 14 . Catastrophic 4 | . 2 . . 2 . Database Lockouts . | . . . . . . Manual 78 | . 19 16 20 22 1 Terminals 102 | . 24 19 30 29 . Fabricators . | . . . . . . Repair Stations 3 | . 2 1 . . . Recycling Units 7 | . . . . 7 . Scanalyzers 2 | . . 2 . . . Garrison Access 1 | . . . 1 . . Terminal Hacks 114 | . 2 5 9 31 67 Record 90 | . 1 . 3 26 60 Robot Analysis 7 | . . 1 . . 6 Open Door 2 | . . . 2 . . Branch Access Points 2 | . 1 1 . . . Emergency Access Points 1 | . . . 1 . . Terminal Index 3 | . . 1 1 1 . Alert Level 2 | . . 1 . 1 . Unreport Threat 2 | . . . 1 1 . Dispatch Records 1 | . . . . 1 . Registered Components 1 | . . . . 1 . Zone Layout 2 | . . 1 1 . . Proto ID Catalog 1 | . . . . . 1 Fabricator Hacks . | . . . . . . Repair Station Hacks 2 | . 2 . . . . Scan Component 1 | . 1 . . . . Repair 1 | . 1 . . . . Recycling Unit Hacks . | . . . . . . Scanalyzer 1 | . . 1 . . . Insert Component 1 | . . 1 . . . Garrison Access Hacks 1 | . . . 1 . . Seal Access 1 | . . . 1 . . Unauthorized Hacks 41 | . 8 8 10 15 . Terminals 35 | . 8 8 10 9 . Track 5 | . 1 1 2 1 . Botnet 11 | . 6 2 2 1 . Disrupt 1 | . . . . 1 . Operators 1 | . . . . 1 . Skim 17 | . 1 5 6 5 . Fabricators . | . . . . . . Repair Stations . | . . . . . . Recycling Units 6 | . . . . 6 . Tunnel 6 | . . . . 6 . Scanalyzers . | . . . . . . Garrison Access . | . . . . . . Data Cores Recovered . | . . . . . . Used . | . . . . . . Hacking Detections 29 | . 7 7 8 7 . Full Trace Events 2 | . 1 1 . . . Feedback Events . | . . . . . . Feedback Blocked . | . . . . . . Robot Schematics Acquired . | . . . . . . Robots Built . | . . . . . . Authchips . | . . . . . . Time . | . . . . . . Total Robot Build Rating . | . . . . . . Part Schematics Acquired . | . . . . . . Parts Built . | . . . . . . Authchips . | . . . . . . Time . | . . . . . . Total Part Build Rating . | . . . . . . Parts Repaired 1 | . 1 . . . . Time 26 | . 26 . . . . Parts Recycled . | . . . . . . Recycled Matter . | . . . . . . Retrieved Matter . | . . . . . . Retrieved Components . | . . . . . . Parts Scanalyzed . | . . . . . . Part Schematics Acquired . | . . . . . . Parts Damaged . | . . . . . . Bothacking | -11 -10 -9 -9 -9 -9 ------------ Run | Yrd Mat Mat Sto Rec Scr Used RIF Installer . | . . . . . . Robots Hacked . | . . . . . . Non-combat . | . . . . . . Combat . | . . . . . . Robot Hacks Applied . | . . . . . . Relay Couplers Released . | . . . . . . Fabnet Peak Effective % . | . . . . . . Robots Rewired . | . . . . . . Allies Hacked . | . . . . . . Hacks Repelled . | . . . . . . Allies | -11 -10 -9 -9 -9 -9 -------- Run | Yrd Mat Mat Sto Rec Scr Total Allies 10 | . . . 10 . . Largest Group 10 | . . . 10 9 9 Highest-Rated Group 88 | . . . 88 80 80 Highest-Rated Ally 16 | . . . 16 16 16 Total Orders 5 | . . . 5 . . STAY 3 | . . . 3 . . FOLLOW 2 | . . . 2 . . Ally Attacks 84 | . . . 13 9 62 Total Damage 742 | . . . 108 96 538 Kills 10 | . . . 2 2 6 Allies Corrupted . | . . . . . . Allies Melted 2 | . . . . . 2 Intel | -11 -10 -9 -9 -9 -9 ------- Run | Yrd Mat Mat Sto Rec Scr Active Infowar (turns) 3344 | 44 833 947 37 . 1483 Sensors 951 | . . 947 4 . . Seismic 2393 | 44 833 . 33 . 1483 Robot Analysis Total 7 | . . 1 . . 6 Derelict Logs Recovered . | . . . . . . Drone Launches 3 | . . . . . 3 Drone Recoveries 2 | . . . . . 2 Exploration | -11 -10 -9 -9 -9 -9 ------------- Run | Yrd Mat Mat Sto Rec Scr Turns Passed 5658 | 123 978 949 685 798 2125 Spaces Moved 4449 | 50 490 464 497 723 2225 Core 677 | . . 5 . . 672 Treads 737 | 50 490 173 . . 24 Legs . | . . . . . . Wheels 3035 | . . 286 497 723 1529 Hover . | . . . . . . Flight . | . . . . . . Fastest Speed 50 | 160 160 100 105 105 50 Average Speed 106 | 160 160 136 105 105 88 Slowest Speed 850 | 160 160 850 120 105 200 Overloaded Moves . | . . . . . . Propulsion Burnouts . | . . . . . . Robots Hopped . | . . . . . . Potential Cave-ins . | . . . . . . Cave-ins Triggered . | . . . . . . Exploration Rate (%) 60 | 4 86 39 48 96 88 Regions Visited 5 Branch Regions 3 Pre-discovered Areas 11 | . . . 1 6 4 Known Exits Taken 3 | . . 1 1 1 . Unknown Exits Taken 2 | 1 1 . . . . Scrap Searched 6 | . . . . . 6 Spaces Dug . | . . . . . . Terrain Destroyed 129 | . 4 68 22 . 35 Melee . | . . . . . . Projectile . | . . . . . . AOE 129 | . 4 68 22 . 35 Terrain Rammed . | . . . . . . Walls Destroyed . | . . . . . . Machines Disabled . | . . . . . . Actions | -11 -10 -9 -9 -9 -9 --------- Run | Yrd Mat Mat Sto Rec Scr Total 5051 | 68 621 661 605 757 2339 Wait 228 | . 81 62 54 30 1 Move 4444 | 49 489 463 496 722 2225 Hop . | . . . . . . Pick Up 76 | 1 12 22 7 1 33 Fast Attach 23 | 1 1 7 5 . 9 Attach 14 | . . 7 . . 7 Detach 6 | . . 1 . . 5 Swap 28 | 3 2 12 5 . 6 Drop 47 | 2 3 9 8 1 24 Fire 183 | 12 31 78 30 3 29 Melee . | . . . . . . Ram . | . . . . . . Kick . | . . . . . . Crush 2 | . 2 . . . . Escape Stasis . | . . . . . . Rewire . | . . . . . . Trap . | . . . . . . Miscellaneous . | . . . . . . Route ------- -11/Scrapyard -10/Materials (discovered 4 exits: *Mat x3 / *Min) -9/Materials (discovered 5 exits: *Mat / Min x2 / *Sto x2) -9/Storage (discovered 2 exits: Mat / *Rec) -9/Recycling (discovered 2 exits: *Fac / *Scr) -9/Scraptown (discovered 2 exits: *Fac x2) History --------- Turn | Location | Event 6 | -11/Scrapyard | Discovered new exit (range 2) 124 | -11/Scrapyard | Entered Materials 299 | -10/Materials | Discovered new exit (range 7) 315 | -10/Materials | Build established: Mutant 388 | -10/Materials | Discovered new exit (range 5) 669 | -10/Materials | Discovered new exit (range 8) 765 | -10/Materials | Identified exit to Mines 930 | -10/Materials | Repaired Seismic Detector 1059 | -10/Materials | Discovered new exit (range 16) 1102 | -10/Materials | Entered another Materials area 1102 | -9/Materials | Evolved 2 slots: Propulsion x1, Utility x1 1158 | -9/Materials | Identified exit to Mines 1158 | -9/Materials | Identified exit to Storage 1492 | -9/Materials | Lost 3 parts (1p2n) 1501 | -9/Materials | Destroyed 8 combat bots 1517 | -9/Materials | Core integrity fell below 50% 1937 | -9/Materials | Discovered new exit (range 16) 1976 | -9/Materials | Identified exit to Materials 2051 | -9/Materials | Entered Storage 2096 | -9/Storage | Garrison activated, responded to threat 2287 | -9/Storage | Used back door to open Recycling access 2287 | -9/Storage | Discovered new exit (range 5) 2297 | -9/Storage | Identified exit to Recycling 2502 | -9/Storage | Assisted by bots powering up and referring to "LRC-V3" 2607 | -9/Storage | Learned location of Recycling (-9) 2661 | -9/Storage | Learned Storage emergency access door positions 2736 | -9/Storage | Entered Recycling 2736 | -9/Recycling | Accompanied by 9 allies 2737 | -9/Recycling | Joined Warlord attack on 0b10 via Recycling 2810 | -9/Recycling | Build established: Commander-Mutant 2827 | -9/Recycling | Discovered new exit (range 6) 2831 | -9/Recycling | Identified exit to Factory 2855 | -9/Recycling | Scanned before Scraplab entrance 2869 | -9/Recycling | Entered Scraplab 2887 | -9/Recycling | Discovered new exit (range 3) 2888 | -9/Recycling | Identified exit to Scraptown 3386 | -9/Recycling | Learned 4 Materials zone layouts 3465 | -9/Recycling | Learned location of 3 exits from Materials 3532 | -9/Recycling | Learned 2 Materials zone layouts 3534 | -9/Recycling | Entered Scraptown 3534 | -9/Scraptown | Accompanied by 9 allies 3537 | -9/Scraptown | System corruption cleaned by C-Scrubber 3766 | -9/Scraptown | Visited Awakened 3813 | -9/Scraptown | Visited Shadow of the Wyrm 4150 | -9/Scraptown | Visited Fellowship of the Rings 4171 | -9/Scraptown | Visited Assassins FH 4206 | -9/Scraptown | Visited Spacefarers 4311 | -9/Scraptown | Visited IN-MT5's Study 4336 | -9/Scraptown | Visited Cave Peace 4427 | -9/Scraptown | Discovered new exit (range 7) 4435 | -9/Scraptown | Identified exit to Factory 4537 | -9/Scraptown | Visited UFD Registry 4537 | -9/Scraptown | Registered with UFD as "Cryonade" 4645 | -9/Scraptown | Visited Junk Repository 4712 | -9/Scraptown | Visited Cartography Club 4835 | -9/Scraptown | Found Surveybot 17 Chip 5023 | -9/Scraptown | Learned location of Storage (-9) 5023 | -9/Scraptown | Learned location of Lower Caves (-6) 5023 | -9/Scraptown | Learned location of Cetus (-5) 5023 | -9/Scraptown | Learned 8 Materials zone layouts 5023 | -9/Scraptown | Learned 24 Factory zone layouts 5023 | -9/Scraptown | Learned 12 Lower Caves zone layouts 5023 | -9/Scraptown | Learned 16 Lower Caves zone layouts 5023 | -9/Scraptown | Learned 12 Upper Caves zone layouts 5023 | -9/Scraptown | Learned 24 Upper Caves zone layouts 5023 | -9/Scraptown | Learned 8 Proximity Caves zone layouts 5023 | -9/Scraptown | Learned Factory emergency access door positions 5023 | -9/Scraptown | Learned location of 1 exit from Lower Caves 5023 | -9/Scraptown | Learned location of 2 exits from Proximity Caves 5027 | -9/Scraptown | Found Deep Structural Scanner 5154 | -9/Scraptown | Visited Science Guys 5213 | -9/Scraptown | Visited DA-N13 Charitable Foundation 5217 | -9/Scraptown | Found DCF Scrap (30 items) 5348 | -9/Scraptown | Visited Scrapoid Research Area 5393 | -9/Scraptown | Met Optimus 5393 | -9/Scraptown | Accepted into 0bPrime 5431 | -9/Scraptown | Visited Analyses Database 5453 | -9/Scraptown | Visited Supply Room 5472 | -9/Scraptown | Visited Observation Area 5474 | -9/Scraptown | Civil war broke out across Scraptown 5548 | -9/Scraptown | Core integrity fell below 20% 5600 | -9/Scraptown | Lost 3 parts (2n1u) 5605 | -9/Scraptown | Lost 14 allies 5659 | -9/Scraptown | Destroyed by DX-NPL(j) with Overtuned Pulse Rifle Last Messages --------------- malfunctioning. 05647_ 8K-F9J(E) cannibalizes Bolt Gun to repair Gauss Rifle. 05647_ 8K-F9J(E) destroyed. 05648_ Bolt penetrates NT-L7Y(E). 05648_ NT-L7Y(E) suffers critical hit (Burn). 05649_ Hvy. Assault Rifle destroyed. 05649_ NT-L7Y(E) destroyed. 05649_ Acquired 97 matter. 05650_ The unstable cave ceiling collapses. 05651_ SV-05D(E) suffers critical hit (Burn). 05652_ Bolt penetrates SV-05D(E). 05654_ ZX-JMQ(j) heat spikes uncontrollably. 05655_ Bolt penetrates SV-05D(E). 05655_ SV-05D(E) destroyed. 05656_ Ovr. Treads recovered from malfunction. 05656_ The unstable cave ceiling collapses. 05658_ Bolt penetrates Earth. 05658_ Penetrated by Bolt. 05659_ KD-K3U(h) destroyed. Map ----- +----------------------------------------------------+ | ?????????????????????????## ##??????????????????? | | ???#############??????????# ###########?????????? | | ???#"""""""""""#??????????# #""""" #?????????? | | ???#""""" X """#??????????# # " " " #?????????? | | ???#""" """"#??????????# # """#?????????? | | ???#" "/""#???? ?????# # """#?????????? | | ???#""" """"# ??""?????#==# " """#?????????? | | ???#"""" ""# """ ?? ?##[*#""" " #?????????? | | ???#"" # "" ##[%#""" #?????????? | | ???#"" "" " #" """ ##[!#""" ""#?????????? | | ???#"" "" "&#" ##M!# " "#?????????? | | ???# "#? ##g[# "#?????????? | | ???#" #???""""""##%=# #?????????? | | ???###### ######???## ## =% ########?????????? | | ######### ########### # =&=% [##########???????? | | """"""""" """"""""""" "!=*%j[[%"## ] #???????? | | !=j %=[=## =%%[ #???????? | | [ = =" #=**!! #???????? | | = !/=###???????? | | ] =*[ = # !=[###???????? | | !!=% j *[[|*###??#??? | | """""""""""""""""""""""""!! = *] %==#?#?#???? | | """"""""""""""""" """"""" * /*==##??????? | | "###### ############### == ! # #####?##?#??? | | "# ######### ##########?#?? | | "# X"######??##@[%= """"#??#?#??? | | "# "" "" ####?###?# [!= # """"######??? | | "# "" "" X"##??#?###; * !%"## " "#####?#?? | | "# " " ######### [ ! !*## ""###?###?? | | " "" == !j %[!! "#?#?###?? | | " " !%[ !=*[%! !%"## X"###?##??? | | "# " " ######### #!%[ !="## " "#?##?#??? | | "# "" "" ""###?##?###""* ! "## """"#?##????? | | "# "" "" ##??##??###""==% "##########?###??? | | "# X"#####?####"==%= "## "]""#####???? | | "# ###?####?##"%%= "## /"!"###?#???? | | "###### ################"[*!=! "## #####???? | | """"""""""""" """""""""""" %=%= "## !""##?###??? | | """""""""""" " """ """ """*= ! !""?#####??? | | / "## !!"####????? | | "## ""]]##??????? | | % "#? "" ]##??????? | | =*! #######?????????? | | [%!== ######?##??????? | | """"""""""" "" " """"" """"" * #######?#???????? | | ########### ##?######## ######!%!###?#?????#?????? | | #??????????????# #!%[###?????????????? | | #??????????????#"" #%==##??#???????????? | | # #??????????????#" "#* #???????????????? | | # #??????????????#" """"" "# #???????????????? | +----------------------------------------------------+ Best States ------------- Heat Dissipation 28 Energy Generation 12 Energy Capacity 265 Matter Stores 300 Matter Capacity 300 Sight Range 16 Robot Scan Range 14 Terrain Scan Density 10 Armor Coverage 450 Core Shielding 20 Utility Shielding 33 Evasion (%) 50 Recoil Reduction 3 Item Schematics ----------------- None Robot Schematics ------------------ None Fabricated ------------ Nothing Repaired ---------- Seismic Detector | 50% | -10/Materials Alien Tech Used ----------------- None Achievements -------------- None Challenges ------------ None Game ------ Seed TacticalSmallReplica Manual? 0 Play Time 01:48:47 Cumulative 5.9 hours Start 2025.07.29 @ 16:41:00 End 2025.08.02 @ 03:19:57 Sessions 4 Manual Loads 0 Difficulty Rogue Special Mode None Game No. 2 Rogue 2 Adventurer 0 Explorer 0 Win Type - Total 0 Types 0/0/0/0/0/0/0/0/0/0 Lore% 11 Gallery% 7 Achievement% 72 Wizard Run 0 Options --------- Layout 2 ASCII 0 Keyboard 1 Movement Vi Keybinds 0 Fullscreen 1 Font 28/SmallcapsGlow Map View 50x52 Zoom Use 0% Tactical HUD 1 Map Filters NONE Filters NONE Steam 1 RUN: 693d7a3e-f450-488c-b1af-94f99ccf1120